fUST/lending_fUST_20240707
["ID","MTS","AMOUNT","RATE_DAILY","PERIOD"]
[331366732,1720281629286,764.38633793,0.00014999,4]
[331366733,1720281640511,3870.17682822,0.00014999,2]
[331366734,1720281651621,1750.01297625,0.00014999,2]
[331366735,1720281652284,811.06293327,0.00014999,2]
[331366737,1720281662737,197.11589527,0.00014999,2]
[331366738,1720281708757,2293.59985726,0.00014999,2]
[331366739,1720281715528,992.03627966,0.00014999,2]
[331366742,1720281764205,6090.8759091,0.00014999,2]
[331366743,1720281787768,14615.30912544,0.00014999,2]
[331366744,1720281789317,1623.52715004,0.00014999,2]
[331366745,1720281874617,322.44786838,0.00014999,2]
[331366746,1720281887543,4333.59684856,0.00014999,2]
[331366748,1720281912448,991.7845399,0.00014999,2]
[331366750,1720281918346,304.48464847,0.00015,2]
[331366752,1720282025582,-407.93784699,0.000168,2]
[331366755,1720282146106,-92.06215301,0.000168,2]
[331366756,1720282146128,-500.0,0.000168,2]
[331366757,1720282155184,-801.16498134,0.00019164,3]
[331366758,1720282155207,-197.16559461,0.00019165,2]
[331366759,1720282155229,-300.0,0.00019999,2]
[331366760,1720282155250,-300.0,0.00019999,2]
[331366761,1720282155270,-763.32326228,0.0002,2]
[331366762,1720282155290,-4173.5699611,0.0002,2]
[331366763,1720282155312,-293.21931504,0.0002,2]
[331366764,1720282155334,-992.23546251,0.00020363,2]
[331366765,1720282155356,-412.59810264,0.00020363,2]
[331366766,1720282155378,-525.26351233,0.00020363,2]
[331366767,1720282155399,-120.22019643,0.00020363,2]
[331366768,1720282155433,-119.77314561,0.00020363,2]
[331366769,1720282155458,-155.17765019,0.00020363,2]
[331366770,1720282155480,-948.9256647,0.00020363,2]
[331366771,1720282155503,-373.78265909,0.00020363,2]
[331366772,1720282155525,-283.26851156,0.00020363,2]
[331366773,1720282155548,-154.79948781,0.00020363,2]
[331366774,1720282155571,-412.59810264,0.00020363,2]
[331366775,1720282155592,-789.98480892,0.00020363,2]
[331366776,1720282155614,-403.37885226,0.00020363,2]
[331366777,1720282155638,-310.276516,0.00021096,2]
[331366778,1720282155663,-2061.8460842,0.00021214,2]
[331366779,1720282155685,-166.666666,0.00021353,2]
[331366780,1720282155707,-186.677591,0.00021623,2]
[331366781,1720282155730,-1684.4344187,0.00021626,2]
[331366782,1720282155753,-420.0,0.00021777,2]
[331366783,1720282155777,-2056.689147,0.00021786,2]
[331366784,1720282155800,-250.0,0.00021825,2]
[331366785,1720282155824,-166.666666,0.00021935,2]
[331366786,1720282155848,-420.0,0.00021999,2]
[331366787,1720282155871,-879.44990711,0.0002217,2]
[331366788,1720282155894,-250.0,0.00022409,2]
[331366789,1720282155917,-4769.0867127,0.00022409,2]
[331366790,1720282155940,-166.666666,0.00022517,2]
[331366791,1720282155962,-1398.7360232,0.00022614,2]
[331366792,1720282155985,-157.0,0.00023,2]
[331366793,1720282156010,-166.666666,0.000231,2]
[331366794,1720282156033,-166.666666,0.00023682,2]
[331366795,1720282156058,-587.0,0.00023712,2]
[331366796,1720282156084,-523.0,0.00024199,2]
[331366797,1720282156107,-166.666666,0.00024264,2]
[331366798,1720282156130,-1790.02575871,0.00025381,2]
[331366799,1720282156155,-235.763236,0.00025417,2]
[331366800,1720282156179,-5033.65,0.00025481,3]
[331366801,1720282156202,-4194.71,0.00025481,3]
[331366802,1720282156225,-3495.59,0.00025481,3]
[331366803,1720282156250,-15174.49763743,0.00025491,3]
[331366854,1720282236549,-545.87563572,0.00019165,2]
[331366857,1720282236563,-244.1091732,0.00019165,2]
[331366858,1720282236573,-412.59810264,0.00020363,2]
[331366859,1720282236583,-3751.32403095,0.00020363,2]
[331366860,1720282236593,-292.54703426,0.00020363,2]
[331366861,1720282236603,-992.23546251,0.00020363,2]
[331366862,1720282236612,-154.77557542,0.00020363,2]
[331366863,1720282236621,-239.99334204,0.00020363,2]
[331366864,1720282236631,-208.65035491,0.00020363,2]
[331366865,1720282236641,-301.86029608,0.0002217,2]
[331366866,1720282236651,-235.763237,0.00024394,2]
[331366867,1720282236661,-1117.11621423,0.00024481,2]
[331366868,1720282236670,-189.07190326,0.00025,2]
[331366869,1720282236680,-599.35036112,0.00025391,2]
[331366883,1720282239906,-255.61525075,0.00019165,2]
[331366884,1720282239916,-2144.02368125,0.00025391,2]
[331366886,1720282239929,-882.528492,0.00025391,2]
[331366887,1720282239941,-5033.12906373,0.00025391,2]
[331366888,1720282239951,-11594.99230834,0.00025401,2]
[331366889,1720282239961,-2912.99,0.00025481,3]
[331366890,1720282239971,-118215.90268757,0.00025491,3]
[331366891,1720282239981,-52108.7037465,0.00025501,2]
[331366892,1720282239991,-30000.0,0.00025501,2]
[331366893,1720282240002,-644.2769737,0.00025501,2]
[331366894,1720282240012,-1986.97335839,0.00025869,2]
[331366895,1720282240021,-532.07448423,0.00026574,2]
[331366896,1720282240031,-161.82297014,0.00026574,2]
[331366897,1720282240040,-155.38326507,0.00026848,2]
[331366898,1720282240050,-156.90902496,0.00026848,2]
[331366899,1720282240060,-157.15080236,0.00027194,2]
[331366900,1720282240070,-310.276516,0.00027195,2]
[331366901,1720282240079,-500.0,0.00027397,2]
[331366902,1720282240092,-500.0,0.00027397,2]
[331366903,1720282240102,-500.0,0.00027397,2]
[331366904,1720282240112,-500.0,0.00027397,2]
[331366905,1720282240121,-500.0,0.00027397,2]
[331366906,1720282240133,-442.60964399,0.00027397,2]
[331366907,1720282240143,-500.0,0.00027397,2]
[331366908,1720282240153,-500.0,0.00027397,2]
[331366909,1720282240164,-500.0,0.00027397,2]
[331366910,1720282240174,-322.98110875,0.00027399,2]
[331366911,1720282240183,-269.8439764,0.000274,2]
[331366912,1720282240194,-625.14049382,0.00027989,14]
[331366913,1720282240203,-187.58512958,0.00027989,2]
[331366914,1720282240213,-412.07735676,0.00028,2]
[331366915,1720282240223,-478.95551741,0.00028,30]
[331366916,1720282240232,-11594.99230831,0.00029021,2]
[331366917,1720282240243,-620.00714707,0.00029894,2]
[331366918,1720282240252,-155.04762688,0.00029901,2]
[331366919,1720282240262,-170.35079036,0.0003,4]
[331366920,1720282240272,-642.9488218,0.0003,4]
[331366921,1720282240282,-707.86491026,0.0003,4]
[331366922,1720282240292,-284.30371793,0.0003,3]
[331366923,1720282240302,-184.81415504,0.0003065,2]
[331366924,1720282240312,-150.0,0.000308,2]
[331366925,1720282240322,-165.08616365,0.00030898,4]
[331366926,1720282240332,-269.98534809,0.00030898,4]
[331366927,1720282240342,-422.59655085,0.00030898,4]
[331366928,1720282240352,-205.77041431,0.00030898,4]
[331366929,1720282240362,-184.20852579,0.00030898,4]
[331366930,1720282240372,-393.96069199,0.00030898,4]
[331366931,1720282240381,-2857.76420507,0.00030898,4]
[331366932,1720282240392,-974.151394,0.00030898,4]
[331366933,1720282240401,-250.30001953,0.00031348,2]
[331366934,1720282240411,-200.0,0.00032037,120]
[331366935,1720282240421,-511.41395898,0.00032473,2]
[331366936,1720282240431,-500.3492932,0.00032473,2]
[331366937,1720282240441,-433.8034697,0.00032473,2]
[331366938,1720282240451,-221.58728046,0.00032473,2]
[331366939,1720282240461,-11594.99230831,0.00032641,2]
[331366940,1720282240471,-310.276516,0.00033295,2]
[331366941,1720282240480,-174.365209,0.00034176,2]
[331366942,1720282240490,-399.49347771,0.00035,2]
[331366943,1720282240500,-962.96577273,0.00035,4]
[331366944,1720282240510,-260.98144755,0.00036,30]
[331366945,1720282240520,-11594.99230831,0.0003626,2]
[331366946,1720282240530,-164.13945886,0.00036732,4]
[331366947,1720282240542,-215.33691159,0.00037587,4]
[331366948,1720282240552,-160.09733992,0.00038229,4]
[331366949,1720282240562,-310.276516,0.00039394,2]
[331366950,1720282240572,-2434.205,0.000395,30]
[331366951,1720282240582,-11594.99230831,0.0003988,2]
[331366952,1720282240593,-405.5186638,0.00039975,31]
[331366953,1720282240603,-628.94044798,0.00039975,31]
[331366954,1720282240612,-500.0,0.00039975,31]
[331366955,1720282240622,-500.0,0.00039975,31]
[331366956,1720282240632,-629.33142764,0.00039975,31]
[331366957,1720282240643,-500.0,0.00039975,31]
[331366958,1720282240653,-500.0,0.00039975,31]
[331366959,1720282240663,-500.0,0.00039975,31]
[331366960,1720282240673,-500.0,0.00039975,31]
[331366961,1720282240682,-500.0,0.00039975,31]
[331366962,1720282240691,-500.0,0.00039975,31]
[331366963,1720282240701,-500.0,0.00039975,31]
[331366964,1720282240710,-500.0,0.00039975,31]
[331366965,1720282240720,-500.0,0.00039975,31]
[331366966,1720282240730,-500.0,0.00039975,31]
[331366967,1720282240740,-500.0,0.00039975,31]
[331366968,1720282240750,-500.0,0.00039975,31]
[331366969,1720282240760,-500.0,0.00039975,31]
[331366970,1720282240770,-500.0,0.00039975,31]
[331366971,1720282240780,-500.0,0.00039975,31]
[331366972,1720282240790,-500.0,0.00039975,31]
[331366973,1720282240800,-500.0,0.00039975,31]
[331366974,1720282240810,-447.40935283,0.00039975,31]
[331366975,1720282240819,-500.0,0.00039975,31]
[331366976,1720282240829,-500.0,0.00039975,31]
[331366977,1720282240838,-500.0,0.00039975,31]
[331366978,1720282240848,-500.0,0.00039975,31]
[331366979,1720282240858,-500.0,0.00039975,31]
[331366980,1720282240868,-500.0,0.00039975,31]
[331366981,1720282240879,-500.0,0.00039975,31]
[331366982,1720282240888,-500.0,0.00039975,31]
[331366983,1720282240898,-500.0,0.00039975,31]
[331366984,1720282240908,-500.0,0.00039975,31]
[331366985,1720282240918,-500.0,0.00039975,31]
[331366986,1720282240928,-500.0,0.00039975,31]
[331366987,1720282240938,-500.0,0.00039975,31]
[331366988,1720282240948,-500.0,0.00039975,31]
[331366989,1720282240959,-500.0,0.00039975,31]
[331366990,1720282240971,-500.0,0.00039975,31]
[331366991,1720282240981,-500.0,0.00039975,31]
[331366992,1720282240990,-500.0,0.00039975,31]
[331366993,1720282240999,-357.08363444,0.00039975,31]
[331366994,1720282241009,-500.0,0.00039975,31]
[331366995,1720282241019,-500.0,0.00039975,31]
[331366996,1720282241028,-500.0,0.00039975,31]
[331366997,1720282241038,-500.0,0.00039975,31]
[331366998,1720282241047,-53351.35524615,0.00039977,31]
[331366999,1720282241057,-29605.45883483,0.00039977,5]
[331367000,1720282241071,-180095.98127117,0.00039977,5]
[331367017,1720282241833,-155.82272078,0.00027194,2]
[331367018,1720282241844,-541.18592537,0.00030898,4]
[331367019,1720282241855,-6673.90588668,0.00039977,5]
[331367020,1720282241870,-50405.45465732,0.00039977,5]
[331367021,1720282241880,-151.0,0.0003998,14]
[331367022,1720282241891,-214.502065,0.0003998,14]
[331367023,1720282241902,-214.502065,0.0003998,14]
[331367024,1720282241913,-657.386655,0.0003998,14]
[331367025,1720282241922,-657.386655,0.0003998,14]
[331367026,1720282241932,-30481.18997721,0.0003998,5]
[331367054,1720282244879,-360.68182567,0.00037259,7]
[331367055,1720282244889,-441.36322525,0.00039967,3]
[331367057,1720282244901,-1986.12677475,0.00039967,3]
[331367059,1720282244910,-2608.0272542,0.0003998,5]
[331367070,1720282248838,-369.09613096,0.00030898,2]
[331367071,1720282248848,-1029.47972003,0.0003998,5]
[331367076,1720282399006,412.59810264,0.00014999,2]
[331367078,1720282471859,3007.4932475,0.00014999,2]
[331367082,1720282598624,4004.06759451,0.00014999,2]
[331367083,1720282601651,12222.52686603,0.00014999,2]
[331367085,1720282605850,155.72617992,0.00014999,2]
[331367087,1720282609085,3767.28917554,0.00014999,2]
[331367088,1720282618877,155.14547188,0.00014999,2]
[331367090,1720282624859,4690.36708649,0.00014999,2]
[331367092,1720282673405,597.70730701,0.00014999,2]
[331367098,1720282758200,1396.22194019,0.00014999,2]
[331367102,1720282830182,154.77557542,0.00014999,2]
[331367103,1720282862564,154.77557542,0.00014999,2]
[331367112,1720283055220,499.14713183,0.00014999,2]
[331367114,1720283067017,154.77557542,0.00014999,2]
[331367115,1720283067097,14369.56865064,0.00014999,2]
[331367117,1720283119743,208.37564863,0.00014999,2]
[331367119,1720283129417,436.49865584,0.00014999,2]
[331367120,1720283167142,481.31478559,0.00014999,2]
[331367121,1720283178296,155.23538301,0.00014999,2]
[331367122,1720283193844,516.65341742,0.00014999,2]
[331367124,1720283227425,187.6858195,0.00014999,2]
[331367125,1720283228160,-410.09279782,0.00016255,2]
[331367126,1720283234680,661.12832609,0.00014999,2]
[331367127,1720283234913,187.6858195,0.00014999,2]
[331367128,1720283250280,-676.11600164,0.00016255,2]
[331367129,1720283250308,-176.09888537,0.00016255,2]
[331367130,1720283250332,-300.0,0.00018178,2]
[331367131,1720283250356,-300.0,0.00018178,2]
[331367132,1720283250378,-247.60133795,0.0001818,2]
[331367133,1720283250400,-426.80021744,0.0001818,2]
[331367134,1720283250425,-154.89931544,0.0001818,2]
[331367135,1720283250448,-245.2444741,0.00019041,2]
[331367136,1720283250473,-174.365209,0.00019178,2]
[331367137,1720283250498,-319.88949567,0.000198,2]
[331367140,1720283336866,155.56911775,0.00014999,2]
[331367142,1720283338929,-155.30619903,0.00016255,2]
[331367144,1720283340493,-577.9980738,0.00016255,2]
[331367145,1720283355135,-1986.97335839,0.00018899,2]
[331367146,1720283355160,-166.666666,0.00019475,2]
[331367147,1720283355184,-15107.67555577,0.000198,2]
[331367148,1720283355210,-2101.43499469,0.000198,2]
[331367149,1720283355234,-161.65194627,0.000198,2]
[331367150,1720283355259,-199.88176709,0.000198,2]
[331367151,1720283355287,-511.62982065,0.000198,2]
[331367156,1720283367245,-2285.1540163,0.000198,2]
[331367157,1720283367270,-166.666666,0.00020006,2]
[331367158,1720283367293,-250.0,0.00020253,2]
[331367159,1720283367317,-240.40596766,0.000205,2]
[331367160,1720283367345,-166.666666,0.00020537,2]
[331367161,1720283367369,-166.666666,0.00021068,2]
[331367162,1720283367397,-284.340774,0.00021096,2]
[331367163,1720283367421,-166.666666,0.00021599,2]
[331367164,1720283367495,-24900.0,0.00021999,2]
[331367165,1720283367520,-166.666666,0.0002213,2]
[331367166,1720283367543,-1117.11621423,0.00022942,2]
[331367167,1720283367566,-992.23546251,0.00023966,2]
[331367168,1720283367589,-524.53687803,0.00023966,2]
[331367169,1720283367611,-508.70425,0.00023966,2]
[331367170,1720283367635,-491.17654936,0.00023968,2]
[331367171,1720283367659,-154.79103211,0.00023968,2]
[331367172,1720283367682,-198.99823166,0.00023968,2]
[331367173,1720283367705,-301.86029608,0.00024,2]
[331367174,1720283367727,-187.6858195,0.00024,2]
[331367175,1720283367751,-426.75131289,0.00024,2]
[331367176,1720283367773,-210.3580098,0.00024,2]
[331367177,1720283367797,-25233.21360825,0.00025501,2]
[331367265,1720283442472,-2141.92716325,0.00024,2]
[331367266,1720283442485,-992.23546251,0.00024,2]
[331367267,1720283442497,-203.57205931,0.00024,2]
[331367268,1720283442506,-908.33583081,0.00024,2]
[331367269,1720283442515,-188.3092754,0.00024,2]
[331367270,1720283442525,-1199.08067627,0.00024,2]
[331367271,1720283442535,-300.0,0.000255,2]
[331367272,1720283442545,-4766.78639175,0.00025501,2]
[331367273,1720283442554,-271.20730374,0.00025902,2]
[331367274,1720283442565,-154.79103211,0.00026848,2]
[331367275,1720283442574,-284.340774,0.00027195,2]
[331367276,1720283442584,-2436.58743109,0.00027297,2]
[331367277,1720283442593,-323.94,0.00027377,3]
[331367278,1720283442601,-161.97,0.00027377,3]
[331367279,1720283442611,-485.96,0.00027377,3]
[331367280,1720283442620,-2168.77,0.00027377,3]
[331367281,1720283442629,-1807.31,0.00027377,3]
[331367282,1720283442638,-7624.93441595,0.00027387,3]
[331367283,1720283442650,-16629.04650554,0.00027387,3]
[331367284,1720283442662,-363.21,0.00027387,3]
[331367285,1720283442673,-2583.26638813,0.00027387,3]
[331367286,1720283442685,-95200.58335238,0.00027387,3]
[331367287,1720283442695,-500.0,0.00027397,2]
[331367288,1720283442704,-500.0,0.00027397,2]
[331367289,1720283442713,-500.0,0.00027397,2]
[331367290,1720283442723,-173.580737,0.00027397,120]
[331367291,1720283442732,-4979.53464261,0.00028,30]
[331367292,1720283442741,-287.0,0.0002805,2]
[331367293,1720283442751,-647.88,0.00028747,3]
[331367294,1720283442760,-323.94,0.00028747,3]
[331367295,1720283442769,-14611.1912655,0.00029899,2]
[331367296,1720283442778,-170.35079036,0.0003,4]
[331367297,1720283442788,-185.67573215,0.0003,4]
[331367298,1720283442797,-2436.58743107,0.00030445,2]
[331367299,1720283442806,-284.340774,0.00033295,2]
[331367300,1720283442816,-2436.58743107,0.00033594,2]
[331367301,1720283442825,-2436.58743107,0.00036742,2]
[331367302,1720283442834,-499.21441268,0.00037899,4]
[331367303,1720283442843,-707.86491026,0.00037999,4]
[331367304,1720283442852,-707.86491026,0.00037999,4]
[331367305,1720283442861,-970.91568776,0.00039393,4]
[331367306,1720283442870,-284.340774,0.00039394,2]
[331367307,1720283442879,-500.0,0.00039979,31]
[331367308,1720283442889,-500.0,0.00039979,31]
[331367309,1720283442900,-269.54590627,0.00039979,31]
[331367310,1720283442910,-500.0,0.00039979,31]
[331367311,1720283442919,-500.0,0.00039979,31]
[331367312,1720283442928,-500.0,0.00039979,31]
[331367313,1720283442938,-500.0,0.00039979,31]
[331367314,1720283442949,-500.0,0.00039979,31]
[331367315,1720283442958,-500.0,0.00039979,31]
[331367316,1720283442968,-500.0,0.00039979,31]
[331367317,1720283442978,-1000.0,0.00039979,3]
[331367319,1720283442988,-1025.57827945,0.0003998,4]
[331367321,1720283443004,-303.07590911,0.0003998,4]
[331367323,1720283443014,-284.30371793,0.0003998,3]
[331367325,1720283443024,-57207.17841284,0.0003998,31]
[331367327,1720283443033,-122401.040662,0.0003998,5]
[331367329,1720283443043,-3455.19731845,0.00039987,3]
[331367331,1720283443052,-3990.98413807,0.0003999,4]
[331367333,1720283443062,-151.0,0.0003999,14]
[331367335,1720283443072,-151.0,0.0003999,14]
[331367337,1720283443081,-154.79103211,0.00039999,4]
[331367339,1720283443091,-154.79103211,0.00039999,4]
[331367341,1720283443101,-907.32307775,0.0004,4]
[331367343,1720283443110,-190.45822619,0.0004,120]
[331367344,1720283443119,-12020.66693175,0.0004,120]
[331367346,1720283443128,-11000.0,0.0004,120]
[331367348,1720283443136,-150.0,0.00040222,4]
[331367350,1720283443147,-1000.0,0.00040373,2]
[331367352,1720283443156,-857.73484534,0.000405,2]
[331367354,1720283443166,-5000.0,0.000405,35]
[331367356,1720283443175,-218.240125,0.00040587,14]
[331367358,1720283443184,-151.0,0.00040587,14]
[331367360,1720283443194,-151.0,0.00040587,14]
[331367362,1720283443203,-151.0,0.00040587,14]
[331367364,1720283443212,-186.863757,0.00040587,2]
[331367366,1720283443221,-186.863757,0.00040587,2]
[331367368,1720283443231,-122401.040662,0.00040589,5]
[331367370,1720283443240,-9774.21117732,0.00040599,20]
[331367372,1720283443249,-160.0,0.00040966,3]
[331367374,1720283443259,-151.0,0.0004149,14]
[331367376,1720283443268,-151.0,0.0004149,14]
[331367377,1720283443278,-151.0,0.0004149,14]
[331367378,1720283443287,-151.0,0.0004149,14]
[331367379,1720283443296,-151.0,0.0004149,14]
[331367380,1720283443305,-152.194795,0.0004149,14]
[331367381,1720283443314,-186.863757,0.0004149,2]
[331367383,1720283443323,-186.863757,0.0004149,2]
[331367385,1720283443333,-10000.0,0.000415,40]
[331367387,1720283443344,-200.0,0.0004163,120]
[331367389,1720283443356,-160.0,0.00041667,4]
[331367391,1720283443366,-7157.23357,0.00042,120]
[331367392,1720283443378,-683.0,0.00042034,30]
[331367394,1720283443387,-160.0,0.00042368,5]
[331367396,1720283443397,-193.051858,0.00042454,14]
[331367398,1720283443406,-166.1,0.00042454,14]
[331367400,1720283443416,-193.051858,0.00042454,14]
[331367402,1720283443425,-166.1,0.00042454,14]
[331367404,1720283443434,-112882.8723018,0.00042454,5]
[331367410,1720283443479,-9518.1683602,0.00042454,5]
[331367412,1720283443490,-151.0,0.00042465,14]
[331367414,1720283443499,-151.0,0.00042465,14]
[331367416,1720283443508,-151.0,0.00042465,14]
[331367418,1720283443518,-469.33437,0.00042465,14]
[331367420,1720283443529,-449.152401,0.00042465,14]
[331367422,1720283443539,-469.33437,0.00042465,14]
[331367424,1720283443548,-449.152401,0.00042465,14]
[331367426,1720283443560,-5069.55,0.00042465,120]
[331367428,1720283443570,-5069.55,0.00042465,120]
[331367430,1720283443579,-151.0,0.00042465,14]
[331367432,1720283443589,-5069.55,0.00042465,120]
[331367434,1720283443598,-5069.55,0.00042465,120]
[331367436,1720283443608,-5069.55,0.00042465,120]
[331367438,1720283443617,-3477.4472431,0.00042465,120]
[331367440,1720283443629,-1592.1027569,0.00042465,120]
[331367442,1720283443640,-5069.55,0.00042465,120]
[331367444,1720283443649,-5069.55,0.00042465,120]
[331367446,1720283443659,-5069.55,0.00042465,120]
[331367447,1720283443668,-81.69250128,0.00042465,120]
[331367475,1720283447833,-466.16787958,0.00023966,2]
[331367476,1720283448293,-1520.80547881,0.00023966,2]
[331367477,1720283448303,-962.96577273,0.0003701,4]
[331367478,1720283448312,-707.86491026,0.00037899,4]
[331367479,1720283448322,-240.5856912,0.0003989,2]
[331367480,1720283448334,-869.94591213,0.0003989,2]
[331367481,1720283448348,-330.29329238,0.0003989,2]
[331367482,1720283448362,-995.76253536,0.0003989,2]
[331367483,1720283448372,-1014.5992497,0.00042444,3]
[331367484,1720283448384,-491.4907503,0.00042444,3]
[331367485,1720283448394,-1118.5092497,0.00042465,120]
[331367486,1720283448406,-1046.1566997,0.00042465,120]
[331367487,1720283448420,-940.08,0.00042465,120]
[331367489,1720283448432,-811.11177124,0.00042465,120]
[331367519,1720283643312,20000.0,0.00032502,30]
[331367520,1720283646054,20000.0,0.00032502,30]
[331367521,1720283646605,20000.0,0.00032502,30]
[331367522,1720283647071,20000.0,0.00032502,30]
[331367523,1720283647267,20000.0,0.00032502,30]
[331367526,1720283728587,10131.69,0.00032502,30]
[331367531,1720284072619,14527.91315295,0.0001,2]
[331367533,1720284110987,493.55538733,0.0001,2]
[331367534,1720284119407,13222.7805857,0.0001,2]
[331367536,1720284170804,154.88383712,0.00012121,2]
[331367538,1720284249299,531.33500682,0.00014692,2]
[331367539,1720284276504,154.88383712,0.00014692,2]
[331367540,1720284306624,242.79486718,0.00014692,2]
[331367543,1720284467530,155.48446991,0.00014692,2]
[331367544,1720284491249,187.02576402,0.00014999,2]
[331367545,1720284506698,16218.68524789,0.00014692,2]
[331367546,1720284512339,208.04822449,0.00014999,2]
[331367547,1720284519140,404.67602219,0.00014999,2]
[331367548,1720284521158,1986.97335839,0.00014999,2]
[331367549,1720284544833,-901.10262593,0.00015999,2]
[331367551,1720284547140,-1242.92105532,0.00015999,2]
[331367552,1720284547166,-300.0,0.00016099,2]
[331367553,1720284547192,-300.0,0.00016099,2]
[331367554,1720284547217,-15762.69870353,0.000161,2]
[331367555,1720284547242,-299.0,0.000176,2]
[331367556,1720284547266,-420.0,0.00017709,2]
[331367557,1720284547289,-403.37885226,0.00017808,2]
[331367558,1720284547312,-322.98110875,0.00018,2]
[331367560,1720284570138,-1986.97335839,0.0001818,2]
[331367561,1720284571849,-208.04822449,0.0001818,2]
[331367562,1720284571878,-255.61525075,0.00019,2]
[331367563,1720284571911,-587.0,0.0001948,2]
[331367564,1720284571942,-293.21931504,0.0002,2]
[331367565,1720284571968,-625.14049382,0.0002,2]
[331367566,1720284571999,-323.4466,0.00021096,2]
[331367567,1720284572024,-823.0,0.00021428,2]
[331367568,1720284572046,-160.09733992,0.00022,2]
[331367569,1720284572070,-250.0,0.00022883,2]
[331367570,1720284572093,-452.955735,0.00022954,2]
[331367571,1720284572117,-2012.81474978,0.00023032,2]
[331367596,1720284632843,-188.94644421,0.0001818,2]
[331367599,1720284632854,-14643.83386081,0.00023032,2]
[331367601,1720284632863,-4401.0831822,0.00023446,2]
[331367603,1720284632873,-155.04762688,0.00025,2]
[331367605,1720284632883,-1180.46416724,0.0002513,2]
[331367607,1720284632893,-648.02320836,0.00026387,2]
[331367609,1720284632908,-215.33691159,0.00026574,2]
[331367611,1720284632918,-323.4466,0.00027195,2]
[331367613,1720284632929,-5325.0,0.00027397,30]
[331367615,1720284632940,-175.20533383,0.000274,2]
[331367617,1720284632949,-208.80607313,0.00027917,2]
[331367619,1720284632959,-1986.97335839,0.00027917,2]
[331367621,1720284632969,-293.21931504,0.00027917,2]
[331367623,1720284632985,-268.36537859,0.00028,2]
[331367626,1720284632995,-9195.93697433,0.00028,30]
[331367628,1720284633005,-166.666666,0.00028333,2]
[331367630,1720284633014,-1255.07,0.00028409,3]
[331367632,1720284633024,-763.58,0.00028409,3]
[331367634,1720284633035,-500.0,0.00028418,2]
[331367636,1720284633044,-500.0,0.00028418,2]
[331367638,1720284633053,-500.0,0.00028418,2]
[331367640,1720284633063,-500.0,0.00028418,2]
[331367642,1720284633073,-500.0,0.00028418,2]
[331367644,1720284633083,-500.0,0.00028418,2]
[331367646,1720284633092,-500.0,0.00028418,2]
[331367648,1720284633103,-500.0,0.00028418,2]
[331367650,1720284633112,-500.0,0.00028418,2]
[331367652,1720284633122,-500.0,0.00028418,2]
[331367654,1720284633131,-500.0,0.00028418,2]
[331367656,1720284633140,-500.0,0.00028418,2]
[331367658,1720284633150,-500.0,0.00028418,2]
[331367660,1720284633159,-500.0,0.00028418,2]
[331367662,1720284633169,-500.0,0.00028418,2]
[331367664,1720284633178,-500.0,0.00028418,2]
[331367666,1720284633188,-500.0,0.00028418,2]
[331367668,1720284633197,-500.0,0.00028418,2]
[331367670,1720284633207,-500.0,0.00028418,2]
[331367672,1720284633218,-500.0,0.00028418,2]
[331367674,1720284633237,-500.0,0.00028418,2]
[331367676,1720284633248,-500.0,0.00028418,2]
[331367678,1720284633258,-500.0,0.00028418,2]
[331367680,1720284633268,-500.0,0.00028418,2]
[331367701,1720284633469,-500.0,0.00028418,2]
[331367703,1720284633479,-500.0,0.00028418,2]
[331367705,1720284633490,-500.0,0.00028418,2]
[331367708,1720284633500,-500.0,0.00028418,2]
[331367709,1720284633510,-500.0,0.00028418,2]
[331367712,1720284633520,-500.0,0.00028418,2]
[331367713,1720284633533,-500.0,0.00028418,2]